bitfinex-derivatives/quotes_SOLF0:USTF0_20240818
["timestamp","ask_amount","ask_price","bid_price","bid_amount"]
[1723961772204,0.04544004,141.54,141.51,10.14265305]
[1723961772205,2.51784004,141.54,141.51,10.14265305]
[1723961775102,2.51784004,141.54,141.51,2.52265305]
[1723961777203,0.04544004,141.54,141.52,2.4727]
[1723961781111,0.04544004,141.54,141.51,7.66985305]
[1723961781112,0.04544004,141.54,141.53,2.4726]
[1723961781408,0.04544004,141.54,141.53,10.0926]
[1723961781610,4.12,141.59,141.53,7.62]
[1723961782613,2.51740399,141.57,141.55,0.04757992]
[1723961783513,0.04540399,141.57,141.56,2.4721]
[1723961783814,21.21,141.66,141.56,7.62]
[1723961783815,11.74,141.64,141.56,7.62]
[1723961784014,4.12,141.64,141.59,7.62]
[1723961784209,7.62,141.66,141.59,7.62]
[1723961784810,0.05356919,141.64,141.61,0.05412745]
[1723961785319,7.67356919,141.64,141.61,0.05412745]
[1723961785811,2.4709,141.63,141.61,0.05412745]
[1723961786913,7.62,141.62,141.57,1.2784]
[1723961787313,2.4715,141.6,141.56,10.092]
[1723961787519,7.62,141.62,141.56,10.092]
[1723961787914,2.4715,141.6,141.56,10.092]
[1723961788114,2.5196302,141.6,141.58,0.05268963]
[1723961788315,7.6681302,141.6,141.58,0.05268963]
[1723961788518,10.0915,141.59,141.58,0.05268963]
[1723961789718,10.0915,141.59,141.53,5.2302]
[1723961789719,7.62,141.59,141.53,1.3627]
[1723961790012,7.62,141.57,141.53,3.8352]
[1723961790421,7.62,141.56,141.5,8.9598]
[1723961790617,0.0530664,141.54,141.52,0.0499413]
[1723961791926,0.0530664,141.54,141.52,2.5226413]
[1723961794023,0.0530664,141.54,141.52,0.0499413]
[1723961794229,2.5254664,141.54,141.52,0.0499413]
[1723961794521,0.0530664,141.54,141.52,0.0499413]
[1723961795318,2.5254664,141.54,141.52,0.0499413]
[1723961796727,0.0530664,141.54,141.52,2.5227413]
[1723961802024,7.6730664,141.54,141.52,0.0499413]
[1723961802325,0.0530664,141.54,141.52,0.0499413]
[1723961803726,2.4726,141.53,141.52,0.0499413]
[1723961805323,2.5255664,141.54,141.52,0.0499413]
[1723961805626,0.0530664,141.54,141.52,0.0499413]
[1723961806022,2.4726,141.53,141.52,0.0499413]
[1723961818242,2.4726,141.53,141.47,8.9896]
[1723961818243,7.62,141.53,141.38,3.58899844]
[1723961818537,21.21,141.56,141.44,7.62]
[1723961818538,7.62,141.5,141.44,7.62]
[1723961818734,7.62,141.49,141.43,4.069]
[1723961818929,2.4737,141.47,141.43,4.069]
[1723961819330,0.04594994,141.46,141.44,0.051605]
[1723961819830,0.04594994,141.46,141.44,2.525605]
[1723961820228,2.474,141.45,141.44,0.051605]
[1723961821427,10.13984994,141.46,141.44,0.051605]
[1723961821832,7.66594994,141.46,141.44,0.051605]
[1723961822533,2.474,141.45,141.44,0.051605]
[1723961822733,7.66594994,141.46,141.39,4.1584]
[1723961823040,7.66594994,141.46,141.39,11.7784]
[1723961823240,2.4743,141.44,141.39,11.7784]
[1723961823733,0.04625334,141.43,141.39,11.7784]
[1723961823941,0.04625334,141.43,141.4,0.04779283]
[1723961824639,0.04625334,141.43,141.41,2.4746]
[1723961825733,0.04625334,141.43,141.42,2.4745]
[1723961834451,7.62,141.5,141.44,2.474]
[1723961834750,2.4736,141.48,141.44,10.094]
[1723961835452,0.04579599,141.47,141.45,0.045487]
[1723961836248,0.04579599,141.47,141.45,2.519487]
[1723961836447,0.04579599,141.47,141.45,0.045487]
[1723961837258,0.04579599,141.47,141.46,2.4738]
[1723961838959,0.04579599,141.47,141.46,10.0938]
[1723961839258,2.4729,141.52,141.46,8.9808]
[1723961839458,2.4729,141.52,141.48,7.62]
[1723961840157,0.04674889,141.51,141.49,0.0512752]
[1723961840865,0.04674889,141.51,141.49,2.5244752]
[1723961844165,7.66674889,141.51,141.49,0.0512752]
[1723961844474,7.62,141.5,141.49,0.0512752]
[1723961844777,10.0931,141.5,141.49,0.0512752]
[1723961846268,7.62,141.5,141.49,0.0512752]
[1723961846670,0.04674889,141.51,141.49,0.0512752]
[1723961847770,0.04674889,141.51,141.49,2.5245752]
[1723961848466,7.62,141.56,141.5,2.4731]
[1723961848869,2.4725,141.54,141.51,2.4729]
[1723961849371,2.0093,141.59,141.52,2.4727]
[1723961849567,0.04642724,141.57,141.54,0.04856548]
[1723961850168,0.04642724,141.57,141.54,7.66856548]
[1723961850557,0.04642724,141.57,141.55,2.4721]
[1723961850972,0.04642724,141.57,141.54,7.66856548]
[1723961851160,0.04642724,141.57,141.56,2.4721]
[1723961862066,0.04642724,141.57,141.55,2.4721]
[1723961868469,0.04642724,141.57,141.55,7.62]
[1723961869280,0.04642724,141.57,141.56,2.4721]
[1723961874284,1.344,141.64,141.58,2.4716]
[1723961874477,7.62,141.62,141.58,2.4716]
[1723961874874,2.4714,141.6,141.58,2.4716]
[1723961875377,2.523092,141.6,141.58,0.04897573]
[1723961883090,0.051692,141.6,141.58,2.52067573]
[1723961886489,0.051692,141.6,141.59,2.4715]
[1723961889993,0.051692,141.6,141.58,2.52057573]
[1723961890187,2.523092,141.6,141.58,0.04897573]
[1723961890391,7.62,141.59,141.58,0.04897573]
[1723961890898,10.0915,141.59,141.58,0.04897573]
[1723961895888,7.62,141.59,141.53,2.603]
[1723961896092,7.62,141.57,141.51,7.62]
[1723961896495,2.4721,141.56,141.53,2.4725]
[1723961896890,7.62,141.57,141.53,2.4725]
[1723961897089,0.04508971,141.56,141.53,2.51857009]
[1723961898099,2.51728971,141.56,141.53,2.51857009]
[1723961901092,2.4722,141.55,141.53,0.04607009]
[1723961901302,7.62,141.55,141.53,0.04607009]
[1723961901696,7.62,141.54,141.47,2.6108]
[1723961901901,7.62,141.51,141.47,2.6108]
[1723961902409,30.48,141.57,141.43,1.3795]
[1723961902410,7.62,141.5,141.43,1.3795]
[1723961902909,0.04590081,141.48,141.45,2.5186563]
[1723961904100,0.04590081,141.48,141.46,2.4738]
[1723961905409,0.04590081,141.48,141.46,10.0938]
[1723961906111,0.04590081,141.48,141.47,2.4736]
[1723961906904,7.62,141.53,141.48,2.4733]
[1723961907400,2.4728,141.52,141.47,7.62]
[1723961907803,2.4728,141.52,141.48,2.4734]
[1723961907999,10.13978856,141.51,141.48,2.52432931]
[1723961908203,10.137861,141.51,141.48,2.52628822]
[1723961908410,7.664961,141.51,141.48,2.52628822]
[1723961908605,0.044961,141.51,141.48,2.52628822]
[1723961908812,0.044961,141.51,141.49,2.4733]
[1723961910703,7.664961,141.51,141.48,2.52628822]
[1723961912515,7.664961,141.51,141.49,2.4733]
[1723961913114,0.044961,141.51,141.49,2.4733]
[1723961915713,0.044961,141.51,141.5,2.4731]
[1723961917414,0.044961,141.51,141.48,0.05288822]
[1723961918014,0.044961,141.51,141.49,2.4732]
[1723961920313,0.044961,141.51,141.5,2.4731]
[1723961928227,10.0919,141.57,141.49,11.6245]
[1723961928427,10.0919,141.57,141.51,7.62]
[1723961929229,0.05278097,141.55,141.53,2.52667866]
[1723961931230,0.05278097,141.55,141.53,0.05417866]
[1723961934238,0.05278097,141.55,141.53,2.52667866]
[1723961934537,0.05278097,141.55,141.53,0.05417866]
[1723961935534,0.05278097,141.55,141.53,2.52667866]
[1723961936136,0.05278097,141.55,141.54,2.4724]
[1723961936735,6.58417295,141.86,141.54,2.4724]
[1723961936736,10.0919,141.58,141.54,2.4724]
[1723961936934,10.0919,141.58,141.55,2.4722]
[1723961937838,10.14204044,141.58,141.55,2.51800297]
[1723961939243,2.4719,141.57,141.55,0.04580297]
[1723961939536,7.62,141.56,141.55,0.04580297]
[1723961939942,10.0921,141.56,141.55,0.04580297]
[1723961941342,2.4725,141.54,141.49,4.0045]
[1723961941539,30.48,141.57,141.49,4.0045]
[1723961941540,7.62,141.53,141.49,4.0045]
[1723961942247,0.04905053,141.52,141.5,0.04746668]
[1723961942642,0.04905053,141.52,141.51,2.4729]
[1723961960263,0.04905053,141.52,141.5,0.04746668]
[1723961961062,0.04905053,141.52,141.5,2.52056668]
[1723961963563,0.04905053,141.52,141.51,2.4729]
[1723961970866,3.54942068,141.6,141.54,2.4724]
[1723961971071,7.62,141.58,141.54,2.4724]
[1723961971364,10.0918,141.58,141.54,2.4724]
[1723961971970,0.04689288,141.57,141.55,0.04665008]
[1723961972362,1.3248,141.63,141.56,7.62]
[1723961972670,7.62,141.62,141.56,7.62]
[1723961972874,2.4713,141.61,141.57,2.4718]
[1723961973672,2.4713,141.61,141.58,0.04661906]
[1723961973868,7.62,141.6,141.58,0.04661906]
[1723961977365,7.62,141.59,141.58,0.04661906]
[1723961983076,10.0915,141.59,141.58,0.04661906]
[1723961986777,2.4715,141.59,141.58,0.04661906]
[1723961986967,10.0915,141.59,141.58,0.04661906]
[1723961994285,2.4715,141.59,141.58,0.04661906]
[1723962001879,2.4715,141.59,141.55,2.4722]
[1723962001880,0.04661906,141.58,141.48,7.62]
[1723962002087,7.62,141.53,141.48,7.62]
[1723962002781,7.66661906,141.53,141.48,7.62]
[1723962002985,7.66661906,141.53,141.51,1.42567842]
[1723962004385,10.13921906,141.53,141.51,0.04697842]
[1723962005290,7.66661906,141.53,141.51,0.04697842]
[1723962006080,0.04661906,141.53,141.51,0.04697842]
[1723962006284,0.04661906,141.53,141.51,2.51987842]
[1723962007385,0.04661906,141.53,141.52,2.4728]
[1723962007687,2.4721,141.56,141.51,7.66697842]
[1723962007882,7.62,141.57,141.53,2.4725]
[1723962008686,10.092,141.57,141.53,2.4725]
[1723962008989,10.092,141.57,141.54,0.04863679]
[1723962010095,2.4719,141.58,141.54,0.04863679]
[1723962010396,7.62,141.57,141.54,0.04863679]
[1723962010894,10.0919,141.57,141.54,2.52093679]
[1723962011789,2.4719,141.57,141.54,2.52093679]
[1723962014194,10.0919,141.57,141.54,2.52093679]
[1723962017391,2.4721,141.56,141.54,0.04863679]
[1723962018002,7.62,141.55,141.54,0.04863679]
[1723962027395,10.0919,141.57,141.54,2.52103679]
[1723962031504,1.2744,141.63,141.54,7.66863679]
[1723962031703,7.62,141.61,141.57,0.05075662]
[1723962031906,10.0913,141.61,141.58,2.4717]
[1723962033302,10.80933378,141.66,141.57,7.67075662]
[1723962033608,7.62,141.63,141.6,0.05165291]
[1723962033812,2.4711,141.62,141.6,0.05165291]
[1723962036102,7.62,141.63,141.6,0.05165291]
[1723962036299,10.0909,141.63,141.6,0.05165291]
[1723962037319,3.61636626,141.68,141.6,7.67165291]
[1723962037500,7.62,141.67,141.6,7.67165291]
[1723962037702,7.62,141.65,141.6,7.62]
[1723962037906,7.62,141.65,141.62,0.04875139]
[1723962038912,10.0905,141.65,141.62,2.51965139]
[1723962040210,2.4705,141.65,141.62,2.51965139]
[1723962040517,2.4704,141.66,141.63,2.4708]
[1723962040810,2.4704,141.66,141.63,2.52412792]
[1723962041011,10.0903,141.67,141.63,2.52412792]
[1723962041209,2.4703,141.67,141.63,2.52412792]
[1723962041405,7.62,141.68,141.65,2.4704]
[1723962041612,2.4702,141.67,141.62,7.62]
[1723962041826,2.4702,141.67,141.65,0.04586967]
[1723962042511,10.0902,141.67,141.65,0.04586967]
[1723962044619,10.0903,141.66,141.65,0.04586967]
[1723962046115,1.4607,141.71,141.65,0.04586967]
[1723962046414,7.62,141.67,141.65,0.04586967]
[1723962046609,10.0903,141.67,141.65,0.04586967]
[1723962049113,2.4703,141.67,141.65,0.04586967]
[1723962051314,10.09,141.68,141.65,0.04586967]
[1723962052319,10.09,141.68,141.65,2.51636967]
[1723962052614,10.09,141.68,141.65,0.04586967]
[1723962053113,7.62,141.66,141.65,0.04586967]
[1723962054113,10.0903,141.66,141.65,0.04586967]
[1723962057912,2.471,141.63,141.59,3.7915]
[1723962058116,7.62,141.63,141.59,2.4715]
[1723962058318,7.62,141.61,141.54,10.2345]
[1723962058511,7.62,141.61,141.54,11.5501]
[1723962059014,0.04586967,141.59,141.56,0.05273845]
[1723962059527,0.04586967,141.59,141.57,2.4718]
[1723962061224,0.04586967,141.59,141.56,0.05273845]
[1723962061614,0.04586967,141.59,141.58,2.4717]
[1723962061821,7.62,141.64,141.58,7.62]
[1723962062124,2.4709,141.63,141.58,7.62]
[1723962062327,2.4709,141.63,141.59,2.4714]
[1723962063025,2.4709,141.63,141.6,2.52420009]
[1723962066328,10.0907,141.64,141.61,2.4712]
[1723962066728,2.4707,141.64,141.61,2.4712]
[1723962068422,10.0905,141.65,141.62,2.471]
[1723962069324,4.16,141.67,141.61,7.62]
[1723962069526,7.62,141.68,141.62,7.62]
[1723962069724,2.4702,141.67,141.64,0.0495352]
[1723962071033,2.4702,141.67,141.64,2.5201352]
[1723962071832,7.62,141.68,141.64,2.5201352]
[1723962072028,7.62,141.68,141.64,0.0495352]
[1723962072234,7.62,141.66,141.64,0.0495352]
[1723962073932,10.0903,141.66,141.64,0.0495352]
[1723962076234,7.62,141.66,141.64,2.5202352]
[1723962076641,2.4702,141.67,141.64,2.5202352]
[1723962076842,2.4702,141.67,141.64,0.0495352]
[1723962078947,2.4702,141.67,141.64,2.5201352]
[1723962079447,2.4703,141.66,141.64,0.0495352]
[1723962083346,10.0905,141.65,141.64,0.0495352]
[1723962084743,3.51009945,141.71,141.64,0.0495352]
[1723962084952,7.87955073,141.7,141.64,0.0495352]
[1723962085148,7.87955073,141.7,141.65,2.4704]
[1723962085149,7.62,141.7,141.65,2.4704]
[1723962085752,2.4699,141.69,141.65,2.4704]
[1723962087552,2.4696,141.7,141.64,7.6695352]
[1723962088852,2.4698,141.69,141.64,0.0495352]
[1723962089751,2.4698,141.69,141.65,2.4704]
[1723962090649,2.4697,141.7,141.64,7.6695352]
[1723962090853,11.78,141.71,141.64,7.6695352]
[1723962091253,2.4699,141.69,141.65,2.4704]
[1723962096756,2.4699,141.69,141.66,2.4703]
[1723962099655,2.4698,141.69,141.65,2.4704]
[1723962099859,7.62,141.69,141.64,0.0495352]
[1723962100159,7.62,141.69,141.64,7.6695352]
[1723962100355,4.16,141.71,141.65,10.0904]
[1723962100561,11.78,141.71,141.65,10.0904]
[1723962100756,11.78,141.71,141.65,2.4704]
[1723962101259,7.62,141.7,141.65,2.4704]
[1723962102054,2.4699,141.69,141.65,2.4704]
[1723962102553,7.62,141.7,141.65,2.4704]
[1723962102756,7.62,141.7,141.64,2.5201352]
[1723962103150,2.4701,141.68,141.64,2.5201352]
[1723962103556,7.62,141.7,141.64,2.5201352]
[1723962103757,7.62,141.68,141.64,2.5201352]
[1723962104163,2.4702,141.67,141.64,2.5201352]
[1723962105762,2.47,141.68,141.65,2.4705]
[1723962111864,4.16,141.71,141.64,7.6695352]
[1723962112170,11.78,141.71,141.64,7.6695352]
[1723962112363,11.78,141.71,141.67,2.47]
[1723962112565,11.78,141.71,141.68,0.05098794]
[1723962113367,2.4696,141.7,141.68,0.05098794]
[1723962113768,11.78,141.71,141.68,2.52098794]
[1723962114369,7.62,141.71,141.68,2.52098794]
[1723962114770,10.0895,141.71,141.68,2.52098794]
[1723962116374,7.62,141.71,141.69,2.4698]
[1723962116774,2.4694,141.71,141.68,2.52088794]
[1723962120972,10.0894,141.71,141.68,2.52088794]
[1723962121273,2.4698,141.69,141.68,0.05098794]
[1723962124779,2.4698,141.7,141.68,0.05098794]
[1723962131378,7.62,141.72,141.68,0.05098794]
[1723962131379,2.5861,141.75,141.68,0.05098794]
[1723962131580,11.74,141.73,141.68,0.05098794]
[1723962131780,14.2092,141.73,141.69,2.4697]
[1723962132886,2.4693,141.72,141.69,2.4697]
[1723962137588,14.2092,141.73,141.7,2.4696]
[1723962137897,2.5861,141.75,141.68,0.05098794]
[1723962137898,7.62,141.74,141.69,7.62]
[1723962138692,2.4691,141.73,141.7,2.4695]
[1723962142501,1.2719,141.79,141.68,0.05098794]
[1723962142700,11.74,141.77,141.71,7.62]
[1723962142902,11.74,141.77,141.72,0.04795232]
[1723962143200,2.4687,141.75,141.72,2.51715232]
[1723962144695,2.4686,141.76,141.72,2.51715232]
[1723962145898,2.4686,141.76,141.73,2.4691]
[1723962146090,2.4686,141.76,141.72,0.04795232]
[1723962146091,7.62,141.76,141.72,0.04795232]
[1723962146293,7.62,141.75,141.72,2.51715232]
[1723962146899,7.62,141.73,141.72,0.04795232]
[1723962147294,7.62,141.73,141.65,4.12]
[1723962147495,10.0895,141.71,141.68,2.47]
[1723962148502,10.13573061,141.71,141.68,2.51855893]
[1723962149002,0.04623061,141.71,141.68,2.51855893]
[1723962150607,0.04623061,141.71,141.69,2.4698]
[1723962154299,2.51573061,141.71,141.68,2.51845893]
[1723962154497,7.66623061,141.71,141.68,0.04855893]
[1723962154706,7.62,141.7,141.68,0.04855893]
[1723962155100,10.0896,141.7,141.68,0.04855893]
[1723962155901,7.62,141.7,141.68,0.04855893]
[1723962156204,2.51573061,141.71,141.68,0.04855893]
[1723962156205,10.13573061,141.71,141.68,0.04855893]
[1723962156801,2.51573061,141.71,141.68,2.51835893]
[1723962159006,10.13573061,141.71,141.68,2.51835893]
[1723962161100,2.4696,141.7,141.68,0.04855893]
[1723962161306,7.66623061,141.71,141.68,0.04855893]
[1723962161805,10.13583061,141.71,141.68,2.51855893]
[1723962162011,7.66623061,141.71,141.68,0.04855893]
[1723962162415,2.4697,141.7,141.68,0.04855893]
[1723962163011,10.13583061,141.71,141.68,2.51855893]
[1723962167617,0.04623061,141.71,141.68,2.51855893]
[1723962169724,2.51573061,141.71,141.68,2.51855893]
[1723962170111,2.4697,141.7,141.68,0.04855893]
[1723962170311,7.62,141.69,141.56,30.48]
[1723962170524,7.62,141.69,141.62,7.62]
[1723962171023,2.4701,141.68,141.65,2.4704]
[1723962171222,11.82,141.7,141.63,7.62]
[1723962171418,0.05011482,141.68,141.66,2.4702]
[1723962178724,0.05011482,141.68,141.67,2.4701]
[1723962192925,0.05011482,141.68,141.65,4.24698966]
[1723962193623,0.05011482,141.68,141.66,2.4702]
[1723962196327,0.05011482,141.68,141.65,4.24698966]
[1723962197136,0.05011482,141.68,141.66,2.4702]
[1723962198532,0.05011482,141.68,141.67,2.4701]
[1723962210846,0.05011482,141.68,141.66,2.4702]
[1723962211345,0.05011482,141.68,141.65,2.51738966]
[1723962211543,7.67011482,141.68,141.65,2.51738966]
[1723962212338,7.67011482,141.68,141.65,0.04698966]
[1723962212534,7.62,141.67,141.65,0.04698966]
[1723962213247,10.0902,141.67,141.65,0.04698966]
[1723962215144,2.4702,141.67,141.65,0.04698966]
[1723962215336,10.14011482,141.68,141.65,0.04698966]
[1723962222447,10.0902,141.67,141.65,0.04698966]
[1723962222750,7.62,141.66,141.65,0.04698966]
[1723962223850,10.0903,141.66,141.65,0.04698966]
[1723962226146,11.18869721,141.66,141.58,8.1626]
[1723962226351,7.62,141.64,141.58,8.1626]
[1723962226748,7.62,141.64,141.6,2.4713]
[1723962227254,0.04878027,141.63,141.61,0.04586464]
[1723962227851,2.51968027,141.63,141.61,0.04586464]
[1723962228156,0.04878027,141.63,141.61,0.04586464]
[1723962230549,0.04878027,141.63,141.61,2.51706464]
[1723962236560,0.04878027,141.63,141.61,0.04586464]
[1723962236757,2.51978027,141.63,141.61,0.04586464]
[1723962236961,0.04878027,141.63,141.61,0.04586464]
[1723962241059,1.2849,141.7,141.62,7.62]
[1723962241260,7.62,141.68,141.62,7.62]
[1723962241456,10.0901,141.68,141.64,2.4705]
[1723962242054,10.0901,141.68,141.62,11.13024413]
[1723962242055,0.04959472,141.67,141.65,0.05086912]
[1723962243970,0.04959472,141.67,141.66,2.4703]
[1723962251964,0.04959472,141.67,141.65,2.52126912]
[1723962252163,7.66959472,141.67,141.65,2.52126912]
[1723962252365,7.66959472,141.67,141.65,0.05086912]
[1723962252566,7.66959472,141.67,141.65,2.52136912]
[1723962253364,7.66959472,141.67,141.66,2.4703]
[1723962253570,0.04959472,141.67,141.66,2.4703]
[1723962254170,0.04959472,141.67,141.65,2.52126912]
[1723962257771,0.04959472,141.67,141.66,2.4703]
[1723962263173,4.18,141.72,141.68,2.4699]
[1723962263477,7.62,141.72,141.68,2.4699]
[1723962263877,10.0893,141.72,141.68,2.4699]
[1723962264370,0.04512592,141.71,141.69,0.05130837]
[1723962265870,0.04512592,141.71,141.7,2.4696]
[1723962269583,0.04512592,141.71,141.69,2.52100837]
[1723962279177,0.04512592,141.71,141.69,0.05130837]
[1723962279583,7.66512592,141.71,141.69,0.05130837]
[1723962284686,10.13452592,141.71,141.69,0.05130837]
[1723962290291,2.4696,141.7,141.69,0.05130837]
[1723962293191,2.51472592,141.71,141.69,0.05130837]
[1723962294091,0.04512592,141.71,141.69,0.05130837]
[1723962295694,2.51462592,141.71,141.69,0.05130837]
[1723962298892,10.0896,141.7,141.69,0.05130837]
[1723962299994,7.62,141.67,141.63,4.14]
[1723962300199,7.62,141.67,141.6,13.1487]
[1723962300403,10.0903,141.66,141.62,2.471]
[1723962300698,7.62,141.66,141.62,2.471]
[1723962300999,7.62,141.66,141.61,2.4711]
[1723962301292,7.62,141.64,141.63,0.0532284]
[1723962305001,2.52420329,141.65,141.63,0.0532284]
[1723962308796,0.05360329,141.65,141.63,2.5240284]
[1723962309001,11.76,141.69,141.63,10.1440284]
[1723962309198,7.62,141.69,141.63,10.0908]
[1723962309399,2.4702,141.67,141.63,10.0908]
[1723962310196,0.042831,141.66,141.64,0.0460228]
[1723962311599,0.042831,141.66,141.64,2.5166228]
[1723962315711,10.133131,141.66,141.64,0.0460228]
[1723962316907,2.4705,141.65,141.64,0.0460228]
[1723962319911,10.133231,141.66,141.64,0.0460228]
[1723962320107,2.513231,141.66,141.64,0.0460228]
[1723962320517,0.042831,141.66,141.64,0.0460228]
[1723962321702,0.042831,141.66,141.64,2.5166228]
[1723962324016,0.042831,141.66,141.65,2.4705]
[1723962325209,0.042831,141.66,141.65,10.0905]
[1723962325411,2.4698,141.69,141.66,2.4702]
[1723962326013,10.0897,141.7,141.66,2.4702]
[1723962326705,2.4695,141.71,141.67,2.4701]
[1723962326911,2.4695,141.71,141.68,0.0477596]
[1723962327108,10.0895,141.71,141.68,0.0477596]
[1723962331320,2.4696,141.7,141.68,0.0477596]
[1723962332318,10.0895,141.71,141.68,0.0477596]
[1723962334821,10.0895,141.71,141.68,2.5177596]
[1723962336419,2.4696,141.7,141.68,0.0477596]
[1723962351620,10.0896,141.7,141.68,0.0477596]
[1723962351821,7.62,141.7,141.68,0.0477596]
[1723962352023,7.62,141.7,141.61,7.66257749]
[1723962352321,30.48,141.71,141.63,2.4707]
[1723962352322,7.62,141.66,141.63,2.4707]
[1723962353026,10.13650905,141.66,141.63,2.5230526]
[1723962357028,2.4707,141.64,141.63,0.0523526]
[1723962357227,7.66620905,141.66,141.63,0.0523526]
[1723962357822,7.62,141.64,141.63,0.0523526]
[1723962358523,10.0907,141.64,141.63,0.0523526]
[1723962360636,2.471,141.63,141.59,6.5914]
[1723962361135,7.62,141.64,141.58,7.62]
[1723962361434,10.0908,141.64,141.6,2.4713]
[1723962362039,0.05370258,141.63,141.61,0.0540128]
[1723962363236,7.67370258,141.63,141.61,0.0540128]
[1723962363930,7.62,141.62,141.56,2.472]
[1723962364137,7.62,141.59,141.56,2.472]
[1723962365138,7.67250978,141.59,141.56,2.51943068]
[1723962366041,0.05250978,141.59,141.57,2.4718]
[1723962370025,0.05250978,141.59,141.58,2.4717]
[1723962373641,0.05250978,141.59,141.57,2.4718]
[1723962374742,0.05250978,141.59,141.56,2.51943068]
[1723962374743,7.62,141.58,141.56,2.51943068]
[1723962376042,7.62,141.58,141.56,0.04743068]
[1723962376246,7.62,141.57,141.56,0.04743068]
[1723962379545,10.14410978,141.59,141.56,0.04743068]
[1723962380850,7.67250978,141.59,141.56,2.51953068]
[1723962381150,7.67250978,141.59,141.56,0.04743068]
[1723962382849,7.67250978,141.59,141.56,2.51943068]
[1723962384145,10.14410978,141.59,141.56,0.04743068]
[1723962384347,7.62,141.57,141.56,0.04743068]
[1723962397168,10.0919,141.57,141.56,0.04743068]
[1723962397776,10.0919,141.57,141.51,5.4145]
[1723962398065,7.62,141.55,141.51,1.2945]
[1723962398274,7.62,141.55,141.53,2.4725]
[1723962398767,7.62,141.54,141.53,2.4725]
[1723962398972,7.62,141.54,141.53,2.52053658]
[1723962400869,7.62,141.54,141.53,0.04803658]
[1723962401568,7.62,141.54,141.47,3.9581]
[1723962401765,7.62,141.5,141.47,3.9581]
[1723962401965,7.62,141.48,141.47,2.4735]
[1723962402173,7.62,141.48,141.46,4.12]
[1723962402368,7.62,141.48,141.43,5.3867]
[1723962402672,4.12,141.54,141.45,2.4738]
[1723962402673,7.62,141.47,141.45,2.4738]
[1723962402868,7.62,141.47,141.43,5.3867]
[1723962403067,7.66704281,141.47,141.45,2.4739]
[1723962404063,7.66704281,141.47,141.46,2.4738]
[1723962404267,0.04704281,141.47,141.46,2.4738]
[1723962406376,6.5927,141.53,141.48,2.4733]
[1723962406571,7.62,141.52,141.48,2.4733]
[1723962407168,7.62,141.52,141.49,2.4733]
[1723962407364,7.66846284,141.52,141.49,2.52016837]
[1723962408679,7.62,141.51,141.49,0.04686837]
[1723962408972,7.62,141.5,141.49,0.04686837]
[1723962421377,7.62,141.5,141.43,5.3867]
[1723962421577,7.62,141.46,141.43,5.3867]
[1723962421780,7.62,141.46,141.43,1.2667]
[1723962422180,7.62,141.46,141.44,2.474]
[1723962422380,7.67183791,141.46,141.44,2.52455368]
[1723962422780,7.62,141.45,141.44,0.05055368]
[1723962423690,0.05183791,141.46,141.44,0.05055368]
[1723962423986,7.62,141.45,141.44,0.05055368]
[1723962425577,0.05183791,141.46,141.44,2.52465368]
[1723962427178,0.05183791,141.46,141.44,0.05055368]
[1723962427973,7.67183791,141.46,141.44,0.05055368]
[1723962428184,7.67183791,141.46,141.44,2.52465368]
[1723962431689,4.12,141.49,141.45,2.474]
[1723962431889,11.74,141.49,141.45,2.474]
[1723962432289,14.2133,141.49,141.45,2.474]
[1723962432889,0.05109188,141.48,141.45,2.474]
[1723962433294,0.05109188,141.48,141.46,2.4738]
[1723962434189,0.05109188,141.48,141.47,2.4736]
[1723962434788,7.62,141.53,141.47,7.62]
[1723962434994,7.62,141.53,141.48,1.3201]
[1723962435202,7.62,141.52,141.48,1.3201]
[1723962435892,0.05124794,141.51,141.49,0.0469155]
[1723962436695,0.05124794,141.51,141.5,2.473]
[1723962438791,7.67124794,141.51,141.49,2.5201155]